Cogmind - Beta 15 @@@ ROGUE MODE // 2025.05.14 @ 14:23:31 // Halloween2019/Abominations Player: Minty Result: Destroyed by G-34 Mercenary with Small Laser Performance ------------- Evolutions (1) 500 Regions Visited (2) 400 Robots Destroyed (24) 120 Value Destroyed (1006) 1006 Prototype IDs (0) 0 Alien Tech Used (0) 0 Bonus (0) 0 TOTAL SCORE: 2026 Bonus ------- None Cogmind --------- Core Integrity 0/400 Matter 166/300 Energy 63/100 System Corruption 6% Temperature Cool (57) Movement Rolling (80) Location -9/Materials Parts ------- > --- POWER (1) -------- (None) > --- PROPULSION (2) --- Wheel Wheel > --- UTILITY (3) ------ Small Storage Unit Authchip [Propulsion] > --- WEAPON (3) ------- Medium Laser Rocket Launcher > --- INVENTORY (8) ---- Light Treads Peak State ------------ > --- POWER ------------ (None) > --- PROPULSION ------- Light Treads Wheel > --- UTILITY ---------- Heat Sink Small Storage Unit Authchip [Propulsion] > --- WEAPON ----------- Medium Laser Rocket Launcher Rocket Launcher > --- INVENTORY -------- (None) [Rating: 13] Favorites ----------- Power Light Ion Engine Engine Light Ion Engine Propulsion Aluminum Leg Treads Light Treads Leg Aluminum Leg Wheel Wheel Utility Small Storage Unit Device Disposable Heat Sink Storage Small Storage Unit Hackware Authchip [Propulsion] Weapon Medium Laser Energy Gun Medium Laser Ballistic Gun Assault Rifle Launcher Rocket Launcher Build | -11 -10 -9 ------- Run | Yrd Mat Mat Slots Evolved 2 | . . 2 Power . | . . . Propulsion . | . . . Utility 1 | . . 1 Weapon 1 | . . 1 Parts Attached 24 | . 9 15 Power 2 | . 2 . Engine 2 | . 2 . Core . | . . . Reactor . | . . . Propulsion 6 | . . 6 Treads 2 | . . 2 Leg . | . . . Wheel 4 | . . 4 Hover . | . . . Flight . | . . . Utility 4 | . 1 3 Device 3 | . 1 2 Storage . | . . . Processor . | . . . Hackware 1 | . . 1 Protection . | . . . Artifact . | . . . Weapon 12 | . 6 6 Energy Gun 7 | . 4 3 Energy Cannon . | . . . Ballistic Gun 1 | . 1 . Ballistic Cannon . | . . . Launcher 4 | . 1 3 Special Weapon . | . . . Impact Weapon . | . . . Slashing Weapon . | . . . Piercing Weapon . | . . . Special Melee Weapon . | . . . Unidentified Prototypes . | . . . Parts Lost 13 | . 1 12 Power 2 | . 1 1 Propulsion 4 | . . 4 Utility 2 | . . 2 Weapon 5 | . . 5 Highest Loss Streak 6 | . 1 6 To Critical Strikes . | . . . Average Backups 5 | . 7 4 Power . | . . . Propulsion 2 | . 4 2 Utility . | . . . Weapon 2 | . 2 2 Tool/Special . | . . . Unused Backups 5 | . 3 2 Power . | . . . Propulsion 4 | . 2 2 Utility 1 | . 1 . Weapon . | . . . Tool/Special . | . . . Average Slot Usage (%) 81 | . 96 70 Engine 7 | . 13 3 Treads 2 | . . 4 Leg 16 | . 28 8 Wheel 2 | . . 3 Device 9 | . 11 8 Storage 12 | . 14 11 Hackware 1 | . . 2 Energy Gun 22 | . 24 20 Launcher 4 | . . 8 Peak Build Rating 13 | . 9 13 Average Rating 9 | . 8 9 On Entrance 7 | 6 6 9 Naked Turns . | . . . Heaviest Build 18 | 12 13 18 Greatest Support 40 | 20 20 40 Greatest Overweight (x) 3 | . . 3 Average Overweight (x) . | . . . Largest Inventory Capacity 8 | . 8 8 Average Capacity 8 | . 8 8 Most Carried 8 | . 8 8 Average Carried 5 | . 7 4 Final Capacity 8 | 8 8 8 Final Carried 8 | 6 8 1 Class Distribution -------------------- 50% | Mutant 49% | Gunner Dominant Class ---------------- Mutant | -10/Materials Gunner | -9/Materials Resources | -11 -10 -9 ----------- Run | Yrd Mat Mat Matter Collected 541 | 200 139 202 Remotely . | . . . Salvage Created 762 | . 152 610 Parts 45 | . 11 34 Haulers Intercepted . | . . . Recyclers Shooed . | . . . Parts Field Recycled . | . . . Retrieved Matter . | . . . Parts Self-Destructed . | . . . Prevented . | . . . Kills | -11 -10 -9 ------- Run | Yrd Mat Mat Combat Hostiles Destroyed 19 | . 4 15 Guns 8 | . 2 6 AOE 10 | . 1 9 Classes Destroyed 9 | . 3 6 Worker 1 | . . 1 Tunneler 1 | . 1 . Recycler 1 | . . 1 Watcher 1 | . 1 . Swarmer 1 | . . 1 Grunt 7 | . 4 3 Sentry 1 | . . 1 Abomination 10 | . . 10 Anomaly 1 | . . 1 Best Kill Streak 4 | . 4 4 Combat Bots Only 3 | . 2 3 Max Kills in Single Turn 2 | . 1 2 Gunslinging . | . . . Exploded 1 | . 1 1 Melee . | . . . Uniques/NPCs Destroyed . | . . . Combat | -11 -10 -9 -------- Run | Yrd Mat Mat Hostile Shots Fired 164 | . 34 130 Missed 40 | . 5 35 Hits 124 | . 29 95 Projectile 124 | . 29 95 Critical Strikes 3 | . 2 1 Part Disruptions 1 | . . 1 Damage Taken 1786 | . 433 1353 Core 465 | . 58 407 Absorbed by Shields . | . . . Core Remaining (%) 88 | 100 76 . Volleys Fired 52 | . 22 30 Largest 3 | . 2 3 Hottest 186 | . 100 186 Shots Fired 105 | . 43 62 Gun 83 | . 39 44 Cannon . | . . . Launcher 22 | . 4 18 Special . | . . . Kinetic 3 | . 3 . Thermal 80 | . 36 44 Explosive 22 | . 4 18 Electromagnetic . | . . . Robot Hit Streak 11 | . 5 11 Robot Miss Streak 7 | . 2 7 Penetration Max . | . . . Secondary Targets . | . . . Shots Hit Robots 70 | . 25 45 Core Hits 61 | . 9 52 Critical Kills . | . . . Critical Parts Destroyed . | . . . Critical Strikes 5 | . 1 4 Burn 5 | . 1 4 Melee Attacks . | . . . Impact . | . . . Slashing . | . . . Piercing . | . . . Sneak Attacks . | . . . Combat Hostiles . | . . . Follow-up Attacks . | . . . Damage Inflicted 1965 | . 432 1533 Guns 844 | . 275 569 Cannons . | . . . Explosions 1121 | . 157 964 Melee . | . . . Ramming . | . . . Kinetic 25 | . 25 . Thermal 819 | . 250 569 Explosive 1121 | . 157 964 Electromagnetic . | . . . Impact . | . . . Slashing . | . . . Piercing . | . . . Highest Corruption 6 | . . 6 Average Corruption 3 | . . 3 Corruption Purged . | . . . Corruption Blocked . | . . . Effects 5 | . . 5 Matter Fused 1 | . . 1 Energy Discharges 1 | . . 1 Parts Rejected 1 | . . 1 Data Loss (minor) 1 | . . 1 Misfires 1 | . . 1 Overload Shots . | . . . Overflow Damage 37 | . 13 24 Projectiles . | . . . Explosions 37 | . 13 24 Melee . | . . . Knockbacks . | . . . Impact . | . . . Kinetic . | . . . Secondary . | . . . Self-Inflicted Damage 228 | . 55 173 Shots 7 | . 3 4 Rammed . | . . . Targets Rammed . | . . . Kicked . | . . . Crushed . | . . . Highest Temperature 260 | . 199 260 Average Temperature 89 | . 84 97 Received Heat Transfer 609 | . 252 357 Siege Activations . | . . . Martial Activations . | . . . Shielding Activations . | . . . Robots Disrupted . | . . . Combat Hostiles . | . . . Robots Corrupted . | . . . Combat Hostiles . | . . . Parts Fried . | . . . Impact Corruptions . | . . . Robots Melted 1 | . 1 . Combat Hostiles 1 | . 1 . Parts Melted 3 | . 2 1 Heat Transferred 1282 | . 814 468 Parts Sabotaged . | . . . Parts Stolen . | . . . Parts Stripped . | . . . Power Chain Reactions . | . . . Alert | -11 -10 -9 ------- Run | Yrd Mat Mat Maximum Alert Level . | . . . Low Security (%) 100 | . 100 100 Level 1 . | . . . Level 2 . | . . . Level 3 . | . . . Level 4 . | . . . Level 5 . | . . . High Security . | . . . Max Security . | . . . Peak Influence 104 | . 68 104 Initial 20 | . . 20 Average 31 | . 34 29 Influence Increases 419 | . 150 269 Destroy 0b10 Robot/C 180 | . 80 100 Destroy 0b10 Robot/NC 20 | . 10 10 Destroy Leader 52 | . 22 30 Successful Hack 14 | . . 14 Disable Machine 60 | . 15 45 Destroy Structure 93 | . 23 70 Influence Decreases 358 | . 100 258 Entered New Map 30 | . . 30 Time Decay 234 | . 90 144 Lost Part 94 | . 10 84 Squads Dispatched 8 | . 1 7 Investigation 3 | . . 3 Extermination . | . . . Reinforcement 3 | . 1 2 Assault 2 | . . 2 Garrison . | . . . Intercept . | . . . Searches Triggered . | . . . Construction Impeded . | . . . Haulers Reinforced . | . . . Active Scanning Responses . | . . . Cargo Convoy Interrupts . | . . . Stealth | -11 -10 -9 --------- Run | Yrd Mat Mat Distress Signals 4 | . 1 3 Communications Jammed . | . . . Distress Signals . | . . . Times Spotted 31 | . 8 23 Peak Tracking Total 7 | . 4 7 Tactical Retreats . | . . . Traps | -11 -10 -9 ------- Run | Yrd Mat Mat Traps Triggered . | . . . Indirectly . | . . . Trap Hack Attempts . | . . . Triggered . | . . . Disarmed . | . . . Reprogrammed . | . . . Reused . | . . . Traps Extracted . | . . . Installed . | . . . Triggered . | . . . Machines | -11 -10 -9 ---------- Run | Yrd Mat Mat Machines Disabled 4 | . 1 3 Max in Single Turn 2 | . 1 2 Machines Repaired . | . . . Machines Dismantled . | . . . Machines Sabotaged . | . . . Overloaded Fab Kills . | . . . Hacking | -11 -10 -9 --------- Run | Yrd Mat Mat Machines Accessed 1 | . . 1 Terminals 1 | . . 1 Fabricators . | . . . Repair Stations . | . . . Recycling Units . | . . . Scanalyzers . | . . . Garrison Access . | . . . Total Hacks 2 | . . 2 Successful 1 | . . 1 Failed 1 | . . 1 Catastrophic 1 | . . 1 Database Lockouts . | . . . Manual . | . . . Terminals 2 | . . 2 Fabricators . | . . . Repair Stations . | . . . Recycling Units . | . . . Scanalyzers . | . . . Garrison Access . | . . . Terminal Hacks 1 | . . 1 Emergency Access Points 1 | . . 1 Fabricator Hacks . | . . . Repair Station Hacks . | . . . Recycling Unit Hacks . | . . . Scanalyzer . | . . . Garrison Access Hacks . | . . . Unauthorized Hacks . | . . . Terminals . | . . . Fabricators . | . . . Repair Stations . | . . . Recycling Units . | . . . Scanalyzers . | . . . Garrison Access . | . . . Data Cores Recovered . | . . . Used . | . . . Hacking Detections 1 | . . 1 Full Trace Events 1 | . . 1 Feedback Events 1 | . . 1 Corruption 1 | . . 1 Feedback Blocked . | . . . Robot Schematics Acquired . | . . . Robots Built . | . . . Authchips . | . . . Time . | . . . Total Robot Build Rating . | . . . Part Schematics Acquired . | . . . Parts Built . | . . . Authchips . | . . . Time . | . . . Total Part Build Rating . | . . . Parts Repaired . | . . . Time . | . . . Parts Recycled . | . . . Recycled Matter . | . . . Retrieved Matter . | . . . Retrieved Components . | . . . Parts Scanalyzed . | . . . Part Schematics Acquired . | . . . Parts Damaged . | . . . Bothacking | -11 -10 -9 ------------ Run | Yrd Mat Mat Used RIF Installer . | . . . Robots Hacked . | . . . Non-combat . | . . . Combat . | . . . Robot Hacks Applied . | . . . Relay Couplers Released . | . . . Fabnet Peak Effective % . | . . . Robots Rewired . | . . . Allies Hacked . | . . . Hacks Repelled . | . . . Allies | -11 -10 -9 -------- Run | Yrd Mat Mat Total Allies . | . . . Largest Group . | . . . Highest-Rated Group . | . . . Highest-Rated Ally . | . . . Total Orders . | . . . Ally Attacks . | . . . Total Damage . | . . . Kills . | . . . Allies Corrupted . | . . . Allies Melted . | . . . Intel | -11 -10 -9 ------- Run | Yrd Mat Mat Active Infowar (turns) . | . . . Robot Analysis Total . | . . . Derelict Logs Recovered . | . . . Drone Launches . | . . . Drone Recoveries . | . . . Exploration | -11 -10 -9 ------------- Run | Yrd Mat Mat Turns Passed 576 | . 238 338 Spaces Moved 219 | 1 106 112 Core 7 | . . 7 Treads 6 | . . 6 Legs 168 | 1 106 61 Wheels 38 | . . 38 Hover . | . . . Flight . | . . . Fastest Speed 80 | 120 120 80 Average Speed 122 | 120 120 123 Slowest Speed 200 | 120 120 200 Overloaded Moves . | . . . Propulsion Burnouts . | . . . Robots Hopped . | . . . Potential Cave-ins . | . . . Cave-ins Triggered . | . . . Exploration Rate (%) 19 | 2 27 28 Regions Visited 2 Branch Regions . Pre-discovered Areas . | . . . Known Exits Taken . | . . . Unknown Exits Taken 2 | 1 1 . Scrap Searched . | . . . Spaces Dug . | . . . Terrain Destroyed 102 | . 24 78 Melee . | . . . Projectile . | . . . AOE 102 | . 24 78 Terrain Rammed . | . . . Walls Destroyed . | . . . Machines Disabled . | . . . Actions | -11 -10 -9 --------- Run | Yrd Mat Mat Total 346 | . 175 171 Wait 34 | . 25 9 Move 217 | . 105 112 Hop . | . . . Pick Up 5 | . 5 . Fast Attach 8 | . 3 5 Attach 14 | . 4 10 Detach 5 | . 3 2 Swap 6 | . 4 2 Drop 5 | . 4 1 Fire 52 | . 22 30 Melee . | . . . Ram . | . . . Kick . | . . . Crush . | . . . Escape Stasis . | . . . Rewire . | . . . Trap . | . . . Miscellaneous . | . . . Route ------- -11/Scrapyard -10/Materials -9/Materials History --------- Turn | Location | Event 1 | -11/Scrapyard | Discovered new exit (range 0) 1 | -11/Scrapyard | Entered Materials 201 | -10/Materials | Discovered new exit (range 5) 239 | -10/Materials | Entered another Materials area 239 | -9/Materials | Evolved 2 slots: Utility x1, Weapon x1 370 | -9/Materials | Lost 3 parts (1p1n1u) 393 | -9/Materials | Core integrity fell below 50% 436 | -9/Materials | Lost 6 parts (3n3w) 478 | -9/Materials | Core integrity fell below 20% 522 | -9/Materials | Discovered new exit (range 10) 577 | -9/Materials | Destroyed by G-34 Mercenary with Small Laser Last Messages --------------- 00550_ Heat Sink destroyed. 00550_ Lesser Abomination destroyed. 00553_ System corrupted: Matter fused (-9). 00557_ Acquired Wheel. 00564_ K-01 Serf collects debris. 00564_ Connecting with Terminal... 00564_ Current location identified: Materials >>Access(Emergency) Found 1 emergency access door: (22,27) Map updated. Feedback: System corruption (+1%). 00564_ ALERT: Suspicious activity at Terminal M012. Dispatching Investigation squad. 00567_ K-01 Serf collects debris. 00571_ K-01 Serf destroyed. 00573_ Rocket Launcher destroyed. 00574_ System corrupted: Energy discharge (-32). 00574_ G-34 Mercenary suffers critical hit (Burn). 00577_ G-34 Mercenary destroyed. Map ----- +----------------------------------------------------+ | | | ?????????????????????????????????????????????????? | | ?????????????????????????????????????????????????? | | ?????????????????????????????????????????????????? | | ?????????????????????????????????????????????????? | | ?????????????????????????????????????????????????? | | ?????????????????????????????????????????????????? | | ?????????????????????????????????????????????????? | | ?????????????????????????????????????????????????? | | ?????????????????????????????????????????????????? | | ?????????????????????????????????????????????????? | | ????????????????????? ?R"????????????????????????? | | ?????????????????? """????????????????????????? | | ????????????????# ????????????????????????? | | ?????????????? ???????????#+???????????? | | ?????????????? ??????????? +?????????? | | ?????????????= % ###???????? #? ??????? | | ????????????? g ; #???????? # ????? | | ????????????## % ; #???????# + ??? | | ????????????? g #???????# # ?? | | ?????????????"" % ######### " ?? | | ????????????#"Y ;;;# # # ; ??? | | ????????????# ! """"""???? | | ????????????# " #????? | | ?????????????? " #?##?? | | ?????????????????????# @ % " ## ### | | ?????????????????????# = "" " "" | | ?????????????????????# "" | | ???????????????+?????# % | | ?????????????????????# % " ] | | ?????????????????????# ! " % | | ?????????????????????# % | | ?????????????????????######"""T""";;; | | ??????????????????????????########### # | | ????????????????????????????????????## | | ????????????????????????????????????# "" | | ????????????????????????????????######" | | ????????????????????????????????# % | | ????????????????????????????????# """ " | | | ????????????????????????????????# "R !" | | ????????????????????????????????? """ " | | ????????????????????????????????# " | | ????????????????????????????????# " % | | ????????????????????????????????######"" | | ?????????????????????????????????????# % | | ????????????????????????????????????? " = ""#### | | ????????????????????????????????????? "" ""#??## | | ????????????????????????????????????# " %"""?# | | ???????????????????????????????????? " "?? | | ????????????????????????????????????? " "???? | +----------------------------------------------------+ Best States ------------- Heat Dissipation 38 Coolant Potential 50 Energy Generation 10 Energy Capacity 125 Matter Stores 300 Matter Capacity 300 Sight Range 16 Terrain Scan Density 10 Evasion (%) 55 Recoil Reduction 2 Authchip Count 1 Item Schematics ----------------- None Robot Schematics ------------------ None Fabricated ------------ Nothing Repaired ---------- Nothing Alien Tech Used ----------------- None Achievements -------------- None Challenges ------------ None Game ------ Seed MissileChipSystem Manual? 0 Play Time 00:04:57 Cumulative 1039.0 hours Start 2025.05.14 @ 14:18:52 End 2025.05.14 @ 14:23:31 Sessions 1 Manual Loads 0 Difficulty Rogue Special Mode Halloween2019/Abominations Game No. 1280 Rogue 997 Adventurer 124 Explorer 159 Win Type - Total 45 Types 31/0/8/4/1/0/0/1/0/0 Lore% 91 Gallery% 85 Achievement% 80 Wizard Run 0 Options --------- Layout 0 ASCII 0 Keyboard 1 Movement Numpad Keybinds 0 Fullscreen 2 Font 18/X11 Map View 76x50 Zoom Use 1% Tactical HUD 1 Map Filters NONE Filters NONE Steam 1 RUN: 315c3173-7d04-4fc3-a497-1fd080a37d72